fUSD/lending_fUSD_20250322
["ID","MTS","AMOUNT","RATE_DAILY","PERIOD"]
[356528920,1742622633524,-150.37421475,0.0004628,15]
[356528921,1742622633534,-350.0,0.00046289,2]
[356528922,1742622633544,-350.0,0.00046289,2]
[356528923,1742622633554,-150.0,0.0004629,30]
[356528924,1742622633563,-3754.93158805,0.0004629,3]
[356528925,1742622633572,-8446.12671927,0.000463,30]
[356528926,1742622633581,-150.0,0.00046305,30]
[356528927,1742622633591,-150.0,0.00046312,30]
[356528928,1742622633599,-352.15213891,0.00046331,15]
[356528929,1742622633609,-150.0,0.00046351,2]
[356528930,1742622633618,-150.0,0.00046355,2]
[356528931,1742622633626,-150.0,0.00046371,30]
[356528932,1742622633635,-150.0,0.00046373,30]
[356528933,1742622633644,-150.0,0.00046419,2]
[356528934,1742622633653,-150.0,0.00046423,2]
[356528935,1742622633661,-288.20418,0.00046423,14]
[356528936,1742622633669,-151.0,0.00046423,14]
[356528937,1742622633678,-288.20418,0.00046423,14]
[356528938,1742622633687,-150.0,0.00046428,2]
[356528939,1742622633696,-150.0,0.00046433,30]
[356528940,1742622633705,-150.0,0.00046452,30]
[356528941,1742622633715,-3754.93158805,0.00046465,3]
[356528942,1742622633723,-3754.93158805,0.0004647,3]
[356528943,1742622633732,-150.0,0.00046472,2]
[356528944,1742622633741,-165.60556432,0.00046475,24]
[356528945,1742622633750,-288.20418,0.00046475,14]
[356528946,1742622633758,-151.0,0.00046475,14]
[356528947,1742622633767,-288.20418,0.00046475,14]
[356528948,1742622633781,-5000.0,0.00046475,120]
[356528949,1742622633790,-8417.6694,0.00046475,120]
[356528950,1742622633799,-150.0,0.00046493,30]
[356528951,1742622633808,-150.0,0.00046493,30]
[356528952,1742622633819,-316.85950463,0.000465,30]
[356528953,1742622633828,-3754.93158805,0.0004652,3]
[356528954,1742622633837,-150.0,0.00046534,30]
[356528955,1742622633846,-15019.7263522,0.0004654,3]
[356528956,1742622633855,-2963.3307617,0.00046543,2]
[356528957,1742622633864,-2665.5581492,0.00046543,2]
[356528958,1742622633873,-288.20418,0.00046543,14]
[356528959,1742622633882,-151.0,0.00046543,14]
[356528960,1742622633890,-288.20418,0.00046543,14]
[356528961,1742622633899,-4194.78656702,0.0004655,120]
[356528962,1742622633908,-4194.78656702,0.0004655,120]
[356528963,1742622633916,-4194.78656702,0.0004655,120]
[356528964,1742622633925,-4194.78656702,0.0004655,120]
[356528965,1742622633933,-4194.78656702,0.0004655,120]
[356528966,1742622633942,-4194.78656702,0.0004655,120]
[356528967,1742622633951,-4194.78656702,0.0004655,120]
[356528968,1742622633959,-4194.78656702,0.0004655,120]
[356528969,1742622633967,-4194.78656702,0.0004655,120]
[356528970,1742622633976,-288.20418,0.0004655,14]
[356528971,1742622633984,-151.0,0.0004655,14]
[356528972,1742622633992,-288.20418,0.0004655,14]
[356528973,1742622634001,-150.0,0.00046553,30]
[356528974,1742622634009,-3754.93158805,0.00046559,3]
[356528975,1742622634018,-11264.7947641,0.00046564,3]
[356528976,1742622634026,-288.20418,0.00046564,14]
[356528977,1742622634034,-288.20418,0.00046564,14]
[356528978,1742622634043,-288.20418,0.00046565,14]
[356528979,1742622634051,-288.20418,0.00046565,14]
[356528980,1742622634059,-142687.400346,0.00046565,3]
[356528981,1742622634068,-1000.0,0.00046573,120]
[356528982,1742622634076,-500.0,0.00046574,120]
[356528983,1742622634084,-1000.0,0.00046574,120]
[356528984,1742622634093,-1000.0,0.00046574,120]
[356528985,1742622634101,-150.0,0.00046574,120]
[356528986,1742622634110,-916.09,0.00046574,120]
[356528987,1742622634118,-916.09,0.00046574,120]
[356528988,1742622634127,-916.09,0.00046574,120]
[356528989,1742622634136,-916.09,0.00046574,120]
[356528990,1742622634144,-916.09,0.00046574,120]
[356528991,1742622634153,-4370.31541544,0.00046574,2]
[356528992,1742622634163,-500.0,0.00046574,120]
[356528993,1742622634172,-288.20418,0.00046574,14]
[356528994,1742622634182,-288.20418,0.00046574,14]
[356528995,1742622634192,-288.20418,0.00046574,14]
[356528996,1742622634201,-288.20418,0.00046574,14]
[356528997,1742622634211,-159.505277,0.00046575,120]
[356528998,1742622634222,-1183.047803,0.00046575,120]
[356528999,1742622634231,-158.830351,0.00046575,120]
[356529000,1742622634241,-1458.791652,0.00046575,120]
[356529001,1742622634250,-500.0,0.00046575,120]
[356529002,1742622634259,-572.13,0.00046575,120]
[356529003,1742622634269,-500.0,0.00046575,120]
[356529004,1742622634279,-176.32199477,0.00046575,120]
[356529005,1742622634288,-500.0,0.00046575,120]
[356529006,1742622634298,-500.0,0.00046575,120]
[356529007,1742622634308,-500.0,0.00046575,120]
[356529008,1742622634317,-975.79,0.00046575,120]
[356529009,1742622634326,-500.0,0.00046575,20]
[356529010,1742622634336,-500.0,0.00046575,120]
[356529011,1742622634346,-500.0,0.00046575,120]
[356529012,1742622634356,-1086.66,0.00046575,120]
[356529013,1742622634365,-500.0,0.00046575,120]
[356529014,1742622634375,-500.0,0.00046575,120]
[356529015,1742622634384,-500.0,0.00046575,120]
[356529016,1742622634393,-500.0,0.00046575,120]
[356529017,1742622634403,-548.80020514,0.00046575,120]
[356529018,1742622634412,-639.8,0.00046575,120]
[356529019,1742622634422,-500.0,0.00046575,120]
[356529020,1742622634431,-905.22,0.00046575,120]
[356529021,1742622634440,-1283.01,0.00046575,120]
[356529022,1742622634449,-500.0,0.00046575,120]
[356529023,1742622634458,-500.0,0.00046575,120]
[356529024,1742622634467,-869.84,0.00046575,120]
[356529025,1742622634476,-706.2,0.00046575,120]
[356529026,1742622634485,-500.0,0.00046575,120]
[356529027,1742622634495,-500.0,0.00046575,120]
[356529028,1742622634503,-500.0,0.00046575,120]
[356529029,1742622634513,-500.0,0.00046575,120]
[356529030,1742622634522,-954.06,0.00046575,120]
[356529031,1742622634532,-500.0,0.00046575,120]
[356529032,1742622634542,-500.0,0.00046575,120]
[356529033,1742622634551,-1461.73211871,0.00046575,120]
[356529034,1742622634561,-694.36,0.00046575,120]
[356529035,1742622634570,-500.0,0.00046575,120]
[356529036,1742622634580,-500.0,0.00046575,120]
[356529037,1742622634589,-500.0,0.00046575,120]
[356529038,1742622634598,-500.0,0.00046575,120]
[356529039,1742622634607,-500.0,0.00046575,120]
[356529040,1742622634616,-154.50268926,0.00046575,120]
[356529041,1742622634627,-500.0,0.00046575,120]
[356529042,1742622634636,-500.0,0.00046575,120]
[356529043,1742622634645,-500.0,0.00046575,120]
[356529044,1742622634654,-500.0,0.00046575,120]
[356529045,1742622634663,-500.0,0.00046575,120]
[356529046,1742622634672,-580.31,0.00046575,120]
[356529047,1742622634681,-330.47603337,0.00046575,120]
[356529048,1742622634690,-500.0,0.00046575,120]
[356529049,1742622634699,-500.0,0.00046575,120]
[356529050,1742622634710,-500.0,0.00046575,120]
[356529051,1742622634719,-500.0,0.00046575,120]
[356529052,1742622634729,-509.55401576,0.00046575,120]
[356529053,1742622634739,-500.0,0.00046575,120]
[356529054,1742622634748,-500.0,0.00046575,120]
[356529055,1742622634758,-500.0,0.00046575,120]
[356529056,1742622634767,-500.0,0.00046575,120]
[356529057,1742622634781,-500.0,0.00046575,120]
[356529058,1742622634791,-1409.63,0.00046575,120]
[356529059,1742622634800,-1229.63,0.00046575,120]
[356529060,1742622634810,-500.0,0.00046575,120]
[356529061,1742622634821,-500.0,0.00046575,120]
[356529062,1742622634832,-237.60886699,0.00046575,120]
[356529063,1742622634841,-500.0,0.00046575,120]
[356529064,1742622634851,-500.0,0.00046575,120]
[356529065,1742622634861,-500.0,0.00046575,120]
[356529066,1742622634870,-629.27,0.00046575,120]
[356529067,1742622634879,-500.0,0.00046575,120]
[356529068,1742622634888,-964.59,0.00046575,120]
[356529069,1742622634897,-500.0,0.00046575,120]
[356529070,1742622634907,-887.75,0.00046575,120]
[356529071,1742622634916,-500.0,0.00046575,120]
[356529072,1742622634926,-523.66463251,0.00046575,120]
[356529073,1742622634935,-1268.47,0.00046575,120]
[356529074,1742622634945,-500.0,0.00046575,120]
[356529075,1742622634954,-532.56236551,0.00046575,120]
[356529076,1742622634964,-500.0,0.00046575,120]
[356529077,1742622634973,-500.0,0.00046575,120]
[356529078,1742622634982,-500.0,0.00046575,120]
[356529079,1742622634991,-500.0,0.00046575,120]
[356529080,1742622635001,-538.26946018,0.00046575,120]
[356529081,1742622635010,-500.0,0.00046575,120]
[356529082,1742622635020,-500.0,0.00046575,120]
[356529083,1742622635030,-500.0,0.00046575,120]
[356529084,1742622635039,-500.0,0.00046575,120]
[356529085,1742622635048,-601.98,0.00046575,120]
[356529086,1742622635058,-513.59409386,0.00046575,120]
[356529087,1742622635067,-500.0,0.00046575,120]
[356529088,1742622635076,-500.0,0.00046575,120]
[356529089,1742622635086,-500.0,0.00046575,120]
[356529090,1742622635095,-500.0,0.00046575,120]
[356529091,1742622635104,-500.0,0.00046575,120]
[356529092,1742622635112,-500.0,0.00046575,120]
[356529093,1742622635122,-682.27,0.00046575,120]
[356529094,1742622635131,-1100.64,0.00046575,120]
[356529095,1742622635140,-500.0,0.00046575,120]
[356529096,1742622635149,-500.0,0.00046575,120]
[356529097,1742622635168,-500.0,0.00046575,120]
[356529098,1742622635177,-353.00691706,0.00046575,120]
[356529099,1742622635186,-500.0,0.00046575,120]
[356529100,1742622635195,-500.0,0.00046575,120]
[356529101,1742622635204,-500.0,0.00046575,30]
[356529102,1742622635214,-788.1,0.00046575,120]
[356529103,1742622635223,-500.0,0.00046575,120]
[356529104,1742622635232,-500.0,0.00046575,120]
[356529105,1742622635241,-500.0,0.00046575,120]
[356529106,1742622635250,-500.0,0.00046575,120]
[356529107,1742622635259,-151.62818366,0.00046575,120]
[356529108,1742622635268,-500.0,0.00046575,120]
[356529109,1742622635277,-500.0,0.00046575,120]
[356529110,1742622635286,-500.0,0.00046575,120]
[356529111,1742622635295,-401.67121107,0.00046575,120]
[356529112,1742622635305,-549.9445534,0.00046575,120]
[356529113,1742622635314,-1094.84,0.00046575,120]
[356529114,1742622635323,-296.48080479,0.00046575,120]
[356529115,1742622635332,-500.0,0.00046575,2]
[356529116,1742622635342,-505.9722816,0.00046575,120]
[356529117,1742622635351,-500.0,0.00046575,120]
[356529118,1742622635360,-500.0,0.00046575,120]
[356529119,1742622635369,-500.0,0.00046575,120]
[356529120,1742622635378,-500.0,0.00046575,120]
[356529121,1742622635387,-500.0,0.00046575,120]
[356529122,1742622635396,-500.0,0.00046575,120]
[356529123,1742622635405,-500.0,0.00046575,120]
[356529124,1742622635414,-1445.29,0.00046575,120]
[356529125,1742622635423,-500.0,0.00046575,60]
[356529126,1742622635432,-670.79,0.00046575,120]
[356529127,1742622635442,-803.08,0.00046575,120]
[356529128,1742622635451,-500.0,0.00046575,120]
[356529129,1742622635460,-500.0,0.00046575,120]
[356529130,1742622635469,-500.0,0.00046575,120]
[356529131,1742622635479,-651.06,0.00046575,120]
[356529132,1742622635489,-500.0,0.00046575,120]
[356529133,1742622635498,-500.0,0.00046575,120]
[356529134,1742622635508,-3000.0,0.00046575,120]
[356529135,1742622635519,-500.0,0.00046575,120]
[356529136,1742622635529,-733.91,0.00046575,120]
[356529137,1742622635539,-2186.4,0.00046575,120]
[356529138,1742622635548,-500.0,0.00046575,120]
[356529139,1742622635557,-500.0,0.00046575,120]
[356529140,1742622635567,-906.15,0.00046575,120]
[356529141,1742622635578,-684.63,0.00046575,120]
[356529142,1742622635588,-500.0,0.00046575,120]
[356529143,1742622635597,-1087.1,0.00046575,120]
[356529144,1742622635609,-500.0,0.00046575,120]
[356529145,1742622635620,-994.64,0.00046575,120]
[356529146,1742622635630,-522.0554852,0.00046575,120]
[356529147,1742622635640,-500.0,0.00046575,120]
[356529148,1742622635650,-981.31,0.00046575,120]
[356529149,1742622635659,-500.0,0.00046575,120]
[356529150,1742622635669,-500.0,0.00046575,120]
[356529151,1742622635678,-500.0,0.00046575,120]
[356529152,1742622635688,-881.63,0.00046575,2]
[356529153,1742622635698,-500.0,0.00046575,120]
[356529154,1742622635709,-500.0,0.00046575,120]
[356529155,1742622635718,-500.0,0.00046575,120]
[356529156,1742622635727,-500.0,0.00046575,120]
[356529157,1742622635737,-1021.48,0.00046575,120]
[356529158,1742622635746,-1042.35,0.00046575,120]
[356529159,1742622635755,-500.0,0.00046575,120]
[356529160,1742622635764,-576.79,0.00046575,120]
[356529161,1742622635776,-500.0,0.00046575,120]
[356529162,1742622635785,-520.99296379,0.00046575,120]
[356529163,1742622635794,-500.0,0.00046575,120]
[356529164,1742622635808,-500.0,0.00046575,120]
[356529165,1742622635818,-674.43,0.00046575,120]
[356529166,1742622635827,-500.0,0.00046575,120]
[356529167,1742622635837,-500.0,0.00046575,120]
[356529168,1742622635846,-500.0,0.00046575,120]
[356529169,1742622635856,-1140.77,0.00046575,120]
[356529170,1742622635867,-65.64121686,0.00046575,120]
[356529171,1742622635893,-434.35878314,0.00046575,120]
[356529172,1742622635903,-500.0,0.00046575,120]
[356529173,1742622635913,-500.0,0.00046575,120]
[356529174,1742622635922,-500.0,0.00046575,120]
[356529175,1742622635931,-500.0,0.00046575,120]
[356529176,1742622635941,-500.0,0.00046575,120]
[356529177,1742622635951,-899.76,0.00046575,120]
[356529178,1742622635960,-500.0,0.00046575,120]
[356529179,1742622635970,-500.0,0.00046575,120]
[356529180,1742622635979,-513.93566673,0.00046575,120]
[356529181,1742622635989,-500.0,0.00046575,120]
[356529182,1742622635999,-500.0,0.00046575,120]
[356529183,1742622636008,-500.0,0.00046575,120]
[356529184,1742622636019,-500.0,0.00046575,120]
[356529185,1742622636028,-500.0,0.00046575,120]
[356529186,1742622636038,-500.0,0.00046575,120]
[356529187,1742622636047,-666.29,0.00046575,120]
[356529188,1742622636058,-500.0,0.00046575,120]
[356529189,1742622636068,-781.01,0.00046575,120]
[356529190,1742622636078,-500.0,0.00046575,120]
[356529191,1742622636091,-500.0,0.00046575,120]
[356529192,1742622636101,-522.66439166,0.00046575,120]
[356529193,1742622636111,-1630.46,0.00046575,120]
[356529194,1742622636122,-500.0,0.00046575,120]
[356529195,1742622636131,-500.0,0.00046575,120]
[356529196,1742622636141,-500.0,0.00046575,120]
[356529197,1742622636150,-536.86,0.00046575,120]
[356529198,1742622636159,-500.0,0.00046575,120]
[356529199,1742622636169,-500.0,0.00046575,120]
[356529200,1742622636179,-500.0,0.00046575,120]
[356529201,1742622636188,-500.0,0.00046575,30]
[356529202,1742622636200,-500.0,0.00046575,120]
[356529203,1742622636209,-500.0,0.00046575,120]
[356529204,1742622636218,-500.0,0.00046575,120]
[356529205,1742622636229,-536.01,0.00046575,120]
[356529206,1742622636240,-500.0,0.00046575,120]
[356529207,1742622636249,-3805.85,0.00046575,120]
[356529208,1742622636258,-500.0,0.00046575,120]
[356529209,1742622636267,-500.0,0.00046575,120]
[356529210,1742622636277,-500.0,0.00046575,120]
[356529211,1742622636286,-739.81,0.00046575,120]
[356529212,1742622636296,-619.55,0.00046575,120]
[356529213,1742622636304,-500.0,0.00046575,120]
[356529214,1742622636313,-944.81,0.00046575,120]
[356529215,1742622636322,-500.0,0.00046575,120]
[356529216,1742622636331,-507.04515798,0.00046575,120]
[356529217,1742622636340,-784.56,0.00046575,120]
[356529218,1742622636349,-500.0,0.00046575,120]
[356529219,1742622636359,-500.0,0.00046575,30]
[356529220,1742622636369,-500.0,0.00046575,120]
[356529221,1742622636379,-2745.77,0.00046575,120]
[356529222,1742622636388,-530.71,0.00046575,120]
[356529223,1742622636398,-198.50007803,0.00046575,120]
[356529224,1742622636407,-500.0,0.00046575,120]
[356529225,1742622636417,-500.0,0.00046575,120]
[356529226,1742622636427,-500.0,0.00046575,120]
[356529227,1742622636436,-2246.16,0.00046575,120]
[356529228,1742622636446,-500.0,0.00046575,120]
[356529229,1742622636455,-743.81,0.00046575,120]
[356529230,1742622636464,-1091.27,0.00046575,120]
[356529231,1742622636473,-575.26117667,0.00046575,120]
[356529232,1742622636483,-500.0,0.00046575,120]
[356529233,1742622636491,-500.0,0.00046575,120]
[356529234,1742622636501,-500.0,0.00046575,120]
[356529235,1742622636510,-500.0,0.00046575,120]
[356529236,1742622636520,-500.0,0.00046575,120]
[356529237,1742622636529,-1585.48,0.00046575,7]
[356529238,1742622636538,-500.0,0.00046575,120]
[356529239,1742622636547,-500.0,0.00046575,120]
[356529240,1742622636556,-1202.93,0.00046575,120]
[356529241,1742622636566,-500.0,0.00046575,120]
[356529242,1742622636575,-500.0,0.00046575,120]
[356529243,1742622636584,-500.0,0.00046575,120]
[356529244,1742622636594,-500.0,0.00046575,120]
[356529245,1742622636603,-500.0,0.00046575,120]
[356529246,1742622636612,-1084.11,0.00046575,120]
[356529247,1742622636622,-836.32,0.00046575,120]
[356529248,1742622636631,-1008.18,0.00046575,120]
[356529249,1742622636640,-500.0,0.00046575,120]
[356529250,1742622636649,-500.0,0.00046575,120]
[356529251,1742622636658,-500.0,0.00046575,120]
[356529252,1742622636667,-500.0,0.00046575,120]
[356529253,1742622636677,-500.0,0.00046575,120]
[356529254,1742622636686,-500.0,0.00046575,120]
[356529255,1742622636695,-500.0,0.00046575,120]
[356529256,1742622636705,-551.10245135,0.00046575,120]
[356529257,1742622636714,-500.0,0.00046575,120]
[356529258,1742622636723,-500.0,0.00046575,120]
[356529259,1742622636735,-500.01171302,0.00046575,120]
[356529260,1742622636745,-500.0,0.00046575,120]
[356529261,1742622636754,-500.0,0.00046575,120]
[356529262,1742622636764,-500.0,0.00046575,120]
[356529263,1742622636776,-500.0,0.00046575,120]
[356529264,1742622636785,-503.12304703,0.00046575,120]
[356529265,1742622636794,-500.0,0.00046575,120]
[356529266,1742622636803,-970.59,0.00046575,120]
[356529267,1742622636815,-440.45965037,0.00046575,120]
[356529268,1742622636825,-602.6,0.00046575,120]
[356529269,1742622636835,-1080.98,0.00046575,120]
[356529270,1742622636846,-500.0,0.00046575,120]
[356529271,1742622636855,-1025.98,0.00046575,120]
[356529272,1742622636864,-500.0,0.00046575,120]
[356529273,1742622636873,-500.0,0.00046575,120]
[356529274,1742622636882,-176.3033342,0.00046575,120]
[356529275,1742622636891,-500.0,0.00046575,120]
[356529276,1742622636900,-772.48,0.00046575,120]
[356529277,1742622636909,-500.0,0.00046575,120]
[356529278,1742622636919,-500.0,0.00046575,120]
[356529279,1742622636928,-1432.3,0.00046575,120]
[356529280,1742622636937,-594.78246921,0.00046575,120]
[356529281,1742622636946,-500.0,0.00046575,120]
[356529282,1742622636955,-611.8,0.00046575,120]
[356529283,1742622636964,-500.0,0.00046575,120]
[356529284,1742622636974,-816.11,0.00046575,120]
[356529285,1742622636983,-500.0,0.00046575,120]
[356529286,1742622636991,-706.31,0.00046575,120]
[356529287,1742622637000,-706.31,0.00046575,120]
[356529288,1742622637010,-706.31,0.00046575,120]
[356529289,1742622637019,-706.31,0.00046575,120]
[356529290,1742622637028,-706.31,0.00046575,120]
[356529291,1742622637036,-706.31,0.00046575,120]
[356529292,1742622637045,-666.0,0.00046575,120]
[356529293,1742622637054,-666.0,0.00046575,120]
[356529294,1742622637063,-1160.8,0.00046575,120]
[356529295,1742622637072,-666.0,0.00046575,120]
[356529296,1742622637081,-500.0,0.00046575,120]
[356529297,1742622637090,-666.0,0.00046575,120]
[356529298,1742622637099,-666.0,0.00046575,120]
[356529299,1742622637109,-733.21,0.00046575,120]
[356529300,1742622637118,-666.0,0.00046575,120]
[356529301,1742622637127,-666.0,0.00046575,120]
[356529302,1742622637136,-666.0,0.00046575,120]
[356529303,1742622637145,-666.0,0.00046575,120]
[356529304,1742622637154,-666.0,0.00046575,120]
[356529305,1742622637163,-161.41815733,0.00046575,120]
[356529306,1742622637172,-500.0,0.00046575,120]
[356529307,1742622637181,-1159.5,0.00046575,120]
[356529308,1742622637190,-454.14133158,0.00046575,120]
[356529309,1742622637198,-500.0,0.00046575,120]
[356529310,1742622637207,-500.0,0.00046575,120]
[356529311,1742622637216,-500.0,0.00046575,120]
[356529312,1742622637225,-500.0,0.00046575,120]
[356529313,1742622637235,-877.93,0.00046575,120]
[356529314,1742622637244,-530.40513453,0.00046575,120]
[356529315,1742622637254,-975.18,0.00046575,120]
[356529316,1742622637263,-500.0,0.00046575,120]
[356529317,1742622637273,-1034.76,0.00046575,120]
[356529318,1742622637282,-702.05,0.00046575,120]
[356529319,1742622637291,-500.0,0.00046575,120]
[356529320,1742622637300,-500.0,0.00046575,120]
[356529321,1742622637310,-522.7106792,0.00046575,120]
[356529322,1742622637320,-500.0,0.00046575,120]
[356529323,1742622637330,-558.53,0.00046575,120]
[356529324,1742622637339,-500.0,0.00046575,120]
[356529325,1742622637349,-500.0,0.00046575,120]
[356529326,1742622637359,-500.0,0.00046575,120]
[356529327,1742622637368,-891.56,0.00046575,120]
[356529328,1742622637378,-620.16,0.00046575,120]
[356529329,1742622637387,-500.0,0.00046575,120]
[356529330,1742622637397,-500.0,0.00046575,120]
[356529331,1742622637406,-1390.46,0.00046575,120]
[356529332,1742622637416,-556.61864179,0.00046575,120]
[356529333,1742622637426,-500.0,0.00046575,120]
[356529334,1742622637436,-1418.92,0.00046575,120]
[356529335,1742622637446,-587.82,0.00046575,120]
[356529336,1742622637456,-500.0,0.00046575,120]
[356529337,1742622637465,-628.82,0.00046575,120]
[356529338,1742622637663,-500.0,0.00046575,120]
[356529339,1742622637674,-551.68882374,0.00046575,120]
[356529340,1742622637683,-500.0,0.00046575,120]
[356529341,1742622637693,-861.51,0.00046575,120]
[356529342,1742622637702,-603.06051892,0.00046575,120]
[356529344,1742622637712,-500.0,0.00046575,120]
[356529346,1742622637721,-500.0,0.00046575,120]
[356529347,1742622637730,-963.31,0.00046575,120]
[356529348,1742622637742,-500.0,0.00046575,120]
[356529349,1742622637751,-500.0,0.00046575,120]
[356529351,1742622637761,-428.13550071,0.00046575,120]
[356529352,1742622637771,-517.41,0.00046575,120]
[356529353,1742622637783,-500.0,0.00046575,120]
[356529354,1742622637792,-500.0,0.00046575,120]
[356529355,1742622637802,-500.0,0.00046575,120]
[356529356,1742622637811,-448.92,0.00046575,120]
[356529357,1742622637823,-500.0,0.00046575,120]
[356529358,1742622637832,-1138.91,0.00046575,120]
[356529359,1742622637842,-599.2,0.00046575,120]
[356529360,1742622637853,-634.12,0.00046575,120]
[356529361,1742622637862,-1040.98,0.00046575,120]
[356529363,1742622637871,-500.0,0.00046575,120]
[356529365,1742622637880,-1409.46,0.00046575,120]
[356529366,1742622637891,-500.0,0.00046575,120]
[356529367,1742622637900,-986.3,0.00046575,120]
[356529368,1742622637909,-500.0,0.00046575,120]
[356529369,1742622637919,-500.0,0.00046575,120]
[356529370,1742622637928,-500.0,0.00046575,120]
[356529371,1742622637937,-500.0,0.00046575,120]
[356529372,1742622637946,-887.15,0.00046575,120]
[356529373,1742622637956,-548.71,0.00046575,120]
[356529374,1742622637965,-500.0,0.00046575,120]
[356529375,1742622637975,-511.51689646,0.00046575,120]
[356529376,1742622637984,-500.0,0.00046575,120]
[356529377,1742622637994,-500.0,0.00046575,120]
[356529378,1742622638003,-500.0,0.00046575,120]
[356529379,1742622638013,-949.07,0.00046575,120]
[356529380,1742622638022,-755.58,0.00046575,120]
[356529381,1742622638031,-741.71,0.00046575,120]
[356529382,1742622638041,-500.0,0.00046575,120]
[356529383,1742622638051,-500.0,0.00046575,120]
[356529384,1742622638060,-625.12,0.00046575,120]
[356529385,1742622638070,-500.0,0.00046575,120]
[356529386,1742622638079,-500.0,0.00046575,120]
[356529387,1742622638088,-500.0,0.00046575,120]
[356529388,1742622638098,-837.93,0.00046575,120]
[356529389,1742622638107,-500.0,0.00046575,120]
[356529390,1742622638117,-863.03,0.00046575,120]
[356529391,1742622638126,-500.0,0.00046575,120]
[356529392,1742622638135,-500.0,0.00046575,120]
[356529393,1742622638145,-618.36,0.00046575,120]
[356529394,1742622638154,-615.85,0.00046575,120]
[356529395,1742622638163,-650.56,0.00046575,120]
[356529396,1742622638172,-500.0,0.00046575,120]
[356529397,1742622638182,-500.0,0.00046575,120]
[356529398,1742622638191,-553.61,0.00046575,120]
[356529399,1742622638200,-500.0,0.00046575,120]
[356529400,1742622638209,-1966.69,0.00046575,120]
[356529401,1742622638218,-589.26,0.00046575,120]
[356529402,1742622638228,-1246.28,0.00046575,120]
[356529403,1742622638237,-590.38,0.00046575,120]
[356529404,1742622638247,-500.0,0.00046575,120]
[356529405,1742622638256,-500.0,0.00046575,120]
[356529406,1742622638266,-721.83,0.00046575,120]
[356529407,1742622638275,-162.66590594,0.00046575,120]
[356529408,1742622638284,-616.85,0.00046575,120]
[356529409,1742622638294,-500.0,0.00046575,120]
[356529410,1742622638303,-904.91,0.00046575,120]
[356529411,1742622638312,-500.0,0.00046575,120]
[356529412,1742622638322,-1026.57,0.00046575,120]
[356529413,1742622638331,-500.0,0.00046575,120]
[356529414,1742622638340,-500.0,0.00046575,120]
[356529415,1742622638349,-500.0,0.00046575,120]
[356529416,1742622638359,-529.19743706,0.00046575,120]
[356529417,1742622638368,-500.0,0.00046575,120]
[356529418,1742622638377,-1207.29,0.00046575,120]
[356529419,1742622638387,-500.0,0.00046575,120]
[356529421,1742622638396,-960.07,0.00046575,120]
[356529423,1742622638405,-500.0,0.00046575,120]
[356529425,1742622638414,-500.0,0.00046575,120]
[356529426,1742622638424,-500.0,0.00046575,120]
[356529428,1742622638433,-500.0,0.00046575,120]